Cogmind - Beta 13 @@@ ROGUE MODE // 2024.05.07 @ 19:32:58 Player: GayPredator Result: Destroyed by D-53 Grenadier with Mini Grenade Launcher Performance ------------- Evolutions (1) 500 Regions Visited (3) 600 Robots Destroyed (30) 150 Value Destroyed (780) 780 Prototype IDs (3) 60 Alien Tech Used (0) 0 Bonus (0) 0 TOTAL SCORE: 2090 Bonus ------- None Cogmind --------- Core Integrity 0/400 Matter 295/300 Energy 45/100 System Corruption 0% Temperature Cool (0) Movement Core (50) Location -9/Mines Parts ------- > --- POWER (1) -------- (None) > --- PROPULSION (3) --- (None) > --- UTILITY (2) ------ Heat Sink > --- WEAPON (3) ------- (None) > --- INVENTORY (5) ---- Improved Ion Engine VTOL Module Medium Storage Unit Improved Terrain Scanner Light Armor Plating Peak State ------------ > --- POWER ------------ Heavy Ion Engine > --- PROPULSION ------- Light Treads Light Treads Light Treads > --- UTILITY ---------- Large Storage Unit Light Armor Plating > --- WEAPON ----------- Light Assault Rifle Heavy Assault Rifle Light Cannon > --- INVENTORY -------- Ion Engine Light Treads VTOL Module Heat Sink Medium Storage Unit Improved Terrain Scanner Mining Laser [Rating: 13] Favorites ----------- Power Ion Engine Engine Ion Engine Propulsion Light Treads Treads Light Treads Utility Large Storage Unit Device Improved Terrain Scanner Storage Large Storage Unit Protection Light Armor Plating Weapon Light Assault Rifle Energy Gun EM Pulse Gun Ballistic Gun Light Assault Rifle Ballistic Cannon Light Cannon Special Weapon Mining Laser Build | -11 -10 -9 -9 ------- Run | Yrd Mat Mat Min Slots Evolved 2 | . . 2 . Power . | . . . . Propulsion 1 | . . 1 . Utility . | . . . . Weapon 1 | . . 1 . Parts Attached 24 | 7 5 8 4 Power 4 | 1 1 2 . Engine 4 | 1 1 2 . Core . | . . . . Reactor . | . . . . Propulsion 6 | 2 . 3 1 Treads 6 | 2 . 3 1 Leg . | . . . . Wheel . | . . . . Hover . | . . . . Flight . | . . . . Utility 5 | 2 1 1 1 Device 2 | 1 . . 1 Storage 2 | 1 1 . . Processor . | . . . . Hackware . | . . . . Protection 1 | . . 1 . Artifact . | . . . . Weapon 9 | 2 3 2 2 Energy Gun 2 | 1 . . 1 Energy Cannon . | . . . . Ballistic Gun 2 | 1 . 1 . Ballistic Cannon 3 | . 2 1 . Launcher . | . . . . Special Weapon 2 | . 1 . 1 Impact Weapon . | . . . . Slashing Weapon . | . . . . Piercing Weapon . | . . . . Special Melee Weapon . | . . . . Unidentified Prototypes 1 | . . 1 . Parts Lost 11 | . . 1 10 Power 2 | . . 1 1 Propulsion 4 | . . . 4 Utility . | . . . . Weapon 5 | . . . 5 Highest Loss Streak 10 | . . 1 10 To Critical Strikes . | . . . . Average Slot Usage (%) 95 | . 100 97 88 Engine 11 | . 14 10 9 Treads 30 | . 28 33 28 Device 6 | . 14 1 2 Storage 11 | . 14 11 10 Protection 5 | . . 9 8 Ballistic Gun 17 | . 14 20 18 Ballistic Cannon 10 | . 12 10 8 Naked Turns . | . . . . Heaviest Build 38 | 14 30 38 38 Greatest Support 60 | 40 40 60 60 Greatest Overweight (x) 6 | . . . 6 Average Overweight (x) . | . . . . Largest Inventory Capacity 15 | 8 15 15 15 Average Capacity 13 | 7 12 15 14 Most Carried 7 | 3 5 7 7 Average Carried 5 | 2 3 5 6 Final Capacity 15 | 8 15 15 5 Final Carried 7 | 3 4 7 5 Class Distribution -------------------- 49% | Scavenger-Tank 48% | Mutant Dominant Class ---------------- Mutant | -10/Materials Scavenger-Tank | -9/Materials Scavenger-Tank | -9/Mines Resources | -11 -10 -9 -9 ----------- Run | Yrd Mat Mat Min Matter Collected 904 | 266 146 315 177 Remotely . | . . . . Salvage Created 904 | 21 306 345 232 Parts 67 | 4 26 26 11 Haulers Intercepted 1 | . 1 . . Recyclers Shooed 1 | . . . 1 Parts Field Recycled . | . . . . Retrieved Matter . | . . . . Parts Self-Destructed . | . . . . Prevented . | . . . . Kills | -11 -10 -9 -9 ------- Run | Yrd Mat Mat Min Combat Hostiles Destroyed 32 | . 9 9 14 Melee 1 | . . . 1 Guns 17 | . 3 4 10 Cannons 14 | . 6 5 3 Classes Destroyed 9 | 1 5 2 1 Worker 1 | . 1 . . Tunneler 1 | 1 . . . Hauler 1 | . 1 . . Operator 1 | . 1 . . Watcher 1 | . . 1 . Swarmer 7 | . 3 . 4 Grunt 15 | . 6 6 3 Sentry 3 | . . 3 . Assembled 7 | . . . 7 Best Kill Streak 7 | 1 4 6 7 Combat Bots Only 7 | . 3 5 7 Max Kills in Single Turn 2 | 1 2 1 1 Gunslinging . | . . . . Exploded . | . . . . Melee 1 | . . . 1 Uniques/NPCs Destroyed . | . . . . Combat | -11 -10 -9 -9 -------- Run | Yrd Mat Mat Min Hostile Shots Fired 193 | . 23 39 131 Missed 45 | . 4 11 30 Damage Taken 1937 | . 179 389 1369 Core 431 | . 20 40 371 Absorbed by Shields . | . . . . Regen/Repaired (Parts) 110 | . . 110 . Core Remaining (%) 96 | 100 92 . . Volleys Fired 93 | 4 26 29 34 Largest 3 | 2 2 3 3 Hottest 100 | 60 100 78 78 Shots Fired 215 | 8 51 80 76 Gun 138 | 8 25 51 54 Cannon 76 | . 25 29 22 Launcher . | . . . . Special 1 | . 1 . . Kinetic 206 | 4 50 80 72 Thermal 1 | . 1 . . Explosive . | . . . . Electromagnetic 8 | 4 . . 4 Robot Hit Streak 15 | 3 7 15 8 Robot Miss Streak 4 | 1 2 3 4 Penetration Max . | . . . . Secondary Targets . | . . . . Shots Hit Robots 134 | 6 36 56 36 Core Hits 61 | 2 16 19 24 Critical Kills 1 | . . . 1 Critical Parts Destroyed 2 | . . 1 1 Critical Strikes 8 | . 1 2 5 Destroy 3 | . . 1 2 Blast 5 | . 1 1 3 Melee Attacks . | . . . . Impact . | . . . . Slashing . | . . . . Piercing . | . . . . Sneak Attacks . | . . . . Combat Hostiles . | . . . . Follow-up Attacks . | . . . . Damage Inflicted 1897 | 63 476 763 595 Guns 1020 | 63 174 392 391 Cannons 857 | . 298 362 197 Explosions . | . . . . Melee . | . . . . Ramming 20 | . 4 9 7 Kinetic 1817 | 27 472 754 564 Thermal . | . . . . Explosive . | . . . . Electromagnetic 60 | 36 . . 24 Impact . | . . . . Slashing . | . . . . Piercing . | . . . . Highest Corruption 1 | . 1 . . Average Corruption 1 | . 1 . . Corruption Purged . | . . . . Corruption Blocked . | . . . . Effects 2 | . 2 . . Energy Discharges 1 | . 1 . . Data Loss (minor) 1 | . 1 . . Overload Shots . | . . . . Overflow Damage 5 | . . . 5 Projectiles 5 | . . . 5 Explosions . | . . . . Melee . | . . . . Knockbacks 9 | . 3 2 4 Impact . | . . . . Kinetic 9 | . 3 2 4 Secondary . | . . . . Self-Inflicted Damage . | . . . . Shots . | . . . . Rammed 11 | . 3 1 7 Targets Rammed 11 | . 3 1 7 Kicked . | . . . . Crushed . | . . . . Highest Temperature 335 | 20 40 158 335 Average Temperature 69 | 13 15 57 122 Received Heat Transfer 539 | . 60 153 326 Effects 1 | . . . 1 Interference 1 | . . . 1 Siege Activations . | . . . . Robots Corrupted . | . . . . Combat Hostiles . | . . . . Parts Fried . | . . . . Impact Corruptions . | . . . . Robots Melted . | . . . . Combat Hostiles . | . . . . Parts Melted . | . . . . Heat Transferred . | . . . . Parts Sabotaged . | . . . . Parts Stolen . | . . . . Parts Stripped . | . . . . Power Chain Reactions . | . . . . Alert | -11 -10 -9 -9 ------- Run | Yrd Mat Mat Min Peak Influence 278 | 5 278 180 232 Initial 57 | . 3 33 57 Average 113 | 2 80 122 187 Maximum Alert Level 1 | . 1 . 1 Low Security (%) 82 | 100 87 100 39 Level 1 17 | . 12 . 60 Level 2 . | . . . . Level 3 . | . . . . Level 4 . | . . . . Level 5 . | . . . . High Security . | . . . . Max Security . | . . . . Squads Dispatched 5 | . 2 3 . Investigation 3 | . 1 2 . Extermination . | . . . . Reinforcement 2 | . 1 1 . Assault . | . . . . Garrison . | . . . . Intercept . | . . . . Searches Triggered . | . . . . Construction Impeded . | . . . . Haulers Reinforced . | . . . . Active Scanning Responses . | . . . . Cargo Convoy Interrupts . | . . . . Stealth | -11 -10 -9 -9 --------- Run | Yrd Mat Mat Min Distress Signals 1 | . 1 . . Communications Jammed . | . . . . Distress Signals . | . . . . Times Spotted 49 | . 15 13 21 Peak Tracking Total 9 | . 5 3 9 Tactical Retreats 2 | . . 1 1 Traps | -11 -10 -9 -9 ------- Run | Yrd Mat Mat Min Traps Triggered . | . . . . Indirectly . | . . . . Trap Hack Attempts . | . . . . Triggered . | . . . . Disarmed . | . . . . Reprogrammed . | . . . . Reused . | . . . . Traps Extracted . | . . . . Installed . | . . . . Triggered . | . . . . Machines | -11 -10 -9 -9 ---------- Run | Yrd Mat Mat Min Machines Disabled 1 | . . . 1 Max in Single Turn 1 | . . . 1 Machines Repaired . | . . . . Machines Dismantled . | . . . . Machines Sabotaged . | . . . . Overloaded Fab Kills . | . . . . Hacking | -11 -10 -9 -9 --------- Run | Yrd Mat Mat Min Machines Accessed 6 | . 2 4 . Terminals 4 | . 2 2 . Fabricators . | . . . . Repair Stations 1 | . . 1 . Recycling Units . | . . . . Scanalyzers 1 | . . 1 . Garrison Access . | . . . . Total Hacks 25 | . 10 15 . Successful 13 | . 5 8 . Failed 12 | . 5 7 . Catastrophic . | . . . . Database Lockouts . | . . . . Manual 9 | . 5 4 . Terminals 16 | . 10 6 . Fabricators . | . . . . Repair Stations 4 | . . 4 . Recycling Units . | . . . . Scanalyzers 5 | . . 5 . Garrison Access . | . . . . Terminal Hacks 4 | . 3 1 . Prototype ID Bank 1 | . 1 . . Locate Traps 2 | . 1 1 . Zone Layout 1 | . 1 . . Fabricator Hacks . | . . . . Repair Station Hacks 2 | . . 2 . Scan Component 1 | . . 1 . Repair 1 | . . 1 . Recycling Unit Hacks . | . . . . Scanalyzer 4 | . . 4 . Insert Component 2 | . . 2 . Analyze 2 | . . 2 . Garrison Access Hacks . | . . . . Unauthorized Hacks 3 | . 2 1 . Terminals 3 | . 2 1 . Botnet 3 | . 2 1 . Fabricators . | . . . . Repair Stations . | . . . . Recycling Units . | . . . . Scanalyzers . | . . . . Garrison Access . | . . . . Data Cores Recovered 1 | . 1 . . Used 1 | . 1 . . Hacking Detections 6 | . 2 4 . Full Trace Events 3 | . 1 2 . Feedback Events 1 | . 1 . . Corruption 1 | . 1 . . Feedback Blocked . | . . . . Robot Schematics Acquired . | . . . . Robots Built . | . . . . Authchips . | . . . . Time . | . . . . Total Robot Build Rating . | . . . . Part Schematics Acquired 2 | . . 2 . Parts Built . | . . . . Authchips . | . . . . Time . | . . . . Total Part Build Rating . | . . . . Parts Repaired 1 | . . 1 . Time 26 | . . 26 . Parts Recycled . | . . . . Recycled Matter . | . . . . Retrieved Matter . | . . . . Retrieved Components . | . . . . Parts Scanalyzed 2 | . . 2 . Part Schematics Acquired 2 | . . 2 . Parts Damaged . | . . . . Bothacking | -11 -10 -9 -9 ------------ Run | Yrd Mat Mat Min Used RIF Installer . | . . . . Robots Hacked . | . . . . Non-combat . | . . . . Combat . | . . . . Robot Hacks Applied . | . . . . Relay Couplers Released . | . . . . Fabnet Peak Effective % . | . . . . Robots Rewired . | . . . . Allies Hacked . | . . . . Hacks Repelled . | . . . . Allies | -11 -10 -9 -9 -------- Run | Yrd Mat Mat Min Total Allies 3 | . . . 3 Largest Group 3 | . . . 3 Highest-Rated Group 40 | . . . 40 Highest-Rated Ally 16 | . . . 16 Total Orders . | . . . . Ally Attacks 18 | . . . 18 Total Damage 189 | . . . 189 Kills 1 | . . . 1 Allies Corrupted . | . . . . Allies Melted 1 | . . . 1 Intel | -11 -10 -9 -9 ------- Run | Yrd Mat Mat Min Robot Analysis Total . | . . . . Derelict Logs Recovered 1 | . . . 1 Drone Launches . | . . . . Drone Recoveries . | . . . . Exploration | -11 -10 -9 -9 ------------- Run | Yrd Mat Mat Min Turns Passed 1416 | 112 455 537 312 Spaces Moved 649 | 58 209 252 130 Core 24 | 10 . . 14 Treads 625 | 48 209 252 116 Legs . | . . . . Wheels . | . . . . Hover . | . . . . Flight . | . . . . Fastest Speed 50 | 50 160 160 50 Average Speed 156 | 141 160 160 152 Slowest Speed 350 | 160 160 160 350 Overloaded Moves . | . . . . Propulsion Burnouts . | . . . . Robots Hopped . | . . . . Cave-ins Triggered . | . . . . Exploration Rate (%) 23 | 5 30 23 36 Regions Visited 3 Branch Regions 1 Pre-discovered Areas 1 | . . . 1 Known Exits Taken . | . . . . Unknown Exits Taken 3 | 1 1 1 . Scrap Searched 1 | . . . 1 Spaces Dug 1 | . 1 . . Terrain Destroyed 1 | . 1 . . Melee . | . . . . Projectile 1 | . 1 . . AOE . | . . . . Terrain Rammed . | . . . . Walls Destroyed . | . . . . Machines Disabled . | . . . . Actions | -11 -10 -9 -9 --------- Run | Yrd Mat Mat Min Total 861 | 79 279 327 176 Wait 67 | 6 31 30 . Move 646 | 57 208 251 130 Hop . | . . . . Pick Up 10 | 5 2 3 . Fast Attach 14 | 5 1 7 1 Attach 5 | 2 . 1 2 Detach 2 | . . 2 . Swap 5 | . 4 . 1 Drop 8 | . 4 3 1 Fire 93 | 4 26 29 34 Melee . | . . . . Ram 2 | . . . 2 Kick . | . . . . Crush 9 | . 3 1 5 Escape Stasis . | . . . . Rewire . | . . . . Trap . | . . . . Miscellaneous . | . . . . Route ------- -11/Scrapyard -10/Materials -9/Materials -9/Mines History --------- Turn | Location | Event 8 | -11/Scrapyard | Discovered new exit (range 14) 113 | -11/Scrapyard | Entered Materials 336 | -10/Materials | Build established: Mutant 478 | -10/Materials | Discovered new exit (range 14) 568 | -10/Materials | Entered another Materials area 568 | -9/Materials | Evolved 2 slots: Propulsion x1, Weapon x1 728 | -9/Materials | Repaired Lgt. Cannon 1031 | -9/Materials | Build established: Scavenger-Tank 1091 | -9/Materials | Discovered new exit (range 8) 1105 | -9/Materials | Entered Mines 1174 | -9/Mines | Destroyed 7 combat bots 1219 | -9/Mines | Learned location of Storage (-9) 1301 | -9/Mines | Assembled infested the area 1306 | -9/Mines | Assisted by a Guerilla fighting off Assembled 1307 | -9/Mines | Assisted by bots powering up and referring to "LRC-V3" 1368 | -9/Mines | Core integrity fell below 50% 1373 | -9/Mines | Lost 4 allies 1416 | -9/Mines | Core integrity fell below 20% 1417 | -9/Mines | Destroyed by D-53 Grenadier with Mini Grenade Launcher Last Messages --------------- 01378_ as-11408 destroyed. 01379_ Acquired 5 matter. 01381_ R-06 Scavenger collects Bore Cannon. 01382_ Slammed into R-06 Scavenger. 01382_ Hvy. Ion Engine destroyed. 01385_ Slammed into R-06 Scavenger. 01388_ Lgt. Treads destroyed. 01390_ Slammed into as-63081. 01400_ Dropped Lrg. Storage Unit. 01402_ Searching scrap... 01402_ Found Hvy. EM Pulse Gun. 01402_ Found Core Shielding. 01402_ Found Imp. Hover Unit. 01402_ Found 23 Matter. 01403_ Acquired Hvy. EM Pulse Gun. 01410_ as-14994 destroyed. 01413_ Hvy. EM Pulse Gun destroyed. 01413_ as-63081 destroyed. 01415_ K-01 Serf destroyed. [Achievement: This Is Interesting...] Map ----- +----------------------------------------------------+ | ?????????????????????????????????????????????????? | | ?????????????????????????????????????????????????? | | ?????????????????????????????????????????????????? | | ?????????????????????????????????????????????????? | | ?????????????????????????????????????????????????? | | ?????????????????????????????????????????????????? | | ?????????????????????????????????????????????????? | | ?????????????????????????????????????????????????? | | ?????????????????????????????????????????????????? | | ?????????????????????????????????????????????????? | | ?????????????????????? %?????????????????????????? | | ????????? ????????? ??? ????????????????????? | | ???????? ????????? ??? ???????????????????? | | ???????? ?????????# #?? ??????????????????? | | ???????? #????????# #?# ???????????????????? | | ???????? #?????#### ## ???????????????????? | | ???????? #?????# ????????????????????? | | ????????? ????## # # ?????????????????????? | | ????????? #??#?# #?????????????????????? | | ????????? #??# ## = #?#???????????????????? | | #####????# #??# # **= # ????????????????????? | | # #????# #??# ]% ?????????????????????? | | # #????#% #???## != #??????????????????????? | | # #????# %#???# #??????????????????????? | | ##???# ##### # ######???????????????? | | #####% ## @ *%=t % #?????????? | | %% ## # d #?????????? | | %%%%%! d #########???????????? | | %% %% % = #####???????????????????? | | ##%# #??????????????????????? | | % ##r###??????????????????????? | | % ### # # ## #????????????????????????? | | % ##?####### ### #????????????????????????? | | # #????????# ? ????????????????????????? | | # ##????????# ### #????????????????????????? | | # #####?????????# #?# #????????????????????????? | | # #?????????????# #?# ????????????????????????? | | # #?????????????# #?###????????????????????????? | | # #?????????????# #????????????????????????????? | | # #?????????????# #????????????????????????????? | | # #?????????????# #????????????????????????????? | | #?????????????# #????????????????????????????? | | #?????????????# #????????????????????????????? | | ###?????????????# #????????????????????????????? | | #??????????????? #????????????????????????????? | | #???????????????# #????????????????????????????? | | #???????????????# #????????????????????????????? | | ##??????????????# #????????????????????????????? | | ####???????????# #????????????????????????????? | | ##?????###### ##???????????????????????????? | +----------------------------------------------------+ Best States ------------- Heat Dissipation 38 Energy Generation 14 Energy Capacity 280 Matter Stores 300 Matter Capacity 300 Sight Range 16 Terrain Scan Range 16 Terrain Scan Density 10 Armor Coverage 150 Evasion (%) 50 Recoil Reduction 3 Item Schematics ----------------- Lgt. Treads | -9/Materials | Scanalyzed Med. Storage Unit | -9/Materials | Scanalyzed Robot Schematics ------------------ None Fabricated ------------ Nothing Alien Tech Used ----------------- None Achievements -------------- This Is Interesting... Challenges ------------ None Game ------ Seed SubdwellerSuspensionStripper Manual? 0 Play Time 00:17:07 Cumulative 82.3 hours Start 2024.05.07 @ 19:19:15 End 2024.05.07 @ 19:32:58 Sessions 1 Manual Loads 0 Difficulty Rogue Special Mode None Game No. 62 Rogue 23 Adventurer 32 Explorer 7 Win Type - Total 0 Types 0/0/0/0/0/0/0/0/0 Lore% 25 Gallery% 55 Achievement% 42 Wizard Run 0 Options --------- Layout 1 ASCII 0 Keyboard 0 Movement Mouse Keybinds 0 Fullscreen 1 Font 16/SmallcapsGlow Map View 25x20 Zoom Use 99% Tactical HUD 1 Map Filters NONE Filters NONE Steam SD RUN: 46305f37-4284-4446-b8d3-2147ad38a191